bitfinex-derivatives/quotes_ETHF0:USTF0_20241007
["timestamp","ask_amount","ask_price","bid_price","bid_amount"]
[1728306834479,0.40525,2468.2,2468.1,0.82845]
[1728306836075,0.40525,2468.3,2468.2,0.40523]
[1728306839780,0.4215,2468.4,2468.1,3.631]
[1728306839979,0.4215,2468.4,2468.3,1.86523]
[1728306840678,0.82672,2468.4,2468.3,1.86523]
[1728306841786,0.4174,2468.6,2468.3,1.86523]
[1728306841986,0.3976,2468.8,2468.4,5.4813]
[1728306842183,0.3976,2468.8,2468.7,0.40517]
[1728306842184,0.40517,2468.8,2468.7,0.40517]
[1728306842587,4.45557,2468.8,2468.7,0.40517]
[1728306843782,0.41,2468.9,2468.7,0.40517]
[1728306843985,0.41,2468.9,2468.8,3.61295]
[1728306844180,1.43511,2469.3,2468.8,5.03218]
[1728306844376,0.3972,2469.3,2469.1,4.6678]
[1728306844588,0.40509,2469.2,2469.1,5.0729]
[1728306845195,0.40509,2469.2,2469.1,3.2078]
[1728306846088,0.40509,2469.2,2469.1,3.6129]
[1728306846787,0.40509,2469.2,2469.1,3.2078]
[1728306847390,1.86509,2469.2,2469.1,3.2078]
[1728306848584,1.86509,2469.2,2469.0,0.40511]
[1728306848585,0.4051,2469.1,2469.0,0.40511]
[1728306848782,0.8005,2469.1,2469.0,0.40511]
[1728306849403,0.3954,2469.1,2469.0,0.40511]
[1728306849697,0.8005,2469.1,2469.0,0.40511]
[1728306853598,0.3954,2469.1,2469.0,0.40511]
[1728306855390,2.26228,2469.3,2469.2,0.40509]
[1728306856394,2.26227,2469.3,2469.2,0.40509]
[1728306860394,0.40509,2469.2,2468.8,5.03217]
[1728306860704,0.40511,2469.1,2469.0,0.4051]
[1728306864596,0.3972,2469.3,2469.2,0.40509]
[1728306864793,0.3972,2469.3,2469.2,3.61289]
[1728306865102,6.20137665,2470.0,2469.2,7.2574]
[1728306865403,0.3982,2469.9,2469.8,0.40498]
[1728306865600,0.80317,2469.9,2469.8,0.78948]
[1728306865797,4.85197,2469.9,2469.8,0.78948]
[1728306866097,4.447,2469.9,2469.8,0.78948]
[1728306866304,0.3982,2469.9,2469.8,0.78948]
[1728306867308,5.59237665,2470.0,2469.9,0.40497]
[1728306867508,5.59237665,2470.0,2469.9,3.61277]
[1728306868696,5.99732665,2470.0,2469.9,3.2078]
[1728306869801,5.59237665,2470.0,2469.8,0.3845]
[1728306869999,0.80617,2469.9,2469.8,0.3845]
[1728306873310,0.4012,2469.9,2469.8,0.78949]
[1728306874008,0.40494,2470.1,2470.0,0.40495]
[1728306875508,0.79373,2470.2,2470.1,0.40494]
[1728306876211,5.48721073,2470.5,2469.9,3.6123]
[1728306876518,0.40492,2470.3,2470.2,0.40492]
[1728306877910,0.40493,2470.2,2470.1,0.40493]
[1728306878501,0.3951,2470.4,2469.9,3.6123]
[1728306878699,0.3951,2470.4,2469.9,4.01726]
[1728306878700,0.40495,2470.0,2469.9,4.01726]
[1728306879207,0.40495,2470.0,2469.9,8.06606]
[1728306884616,0.79705,2470.1,2470.0,0.40495]
[1728306885413,0.79705,2470.1,2470.0,0.80495]
[1728306886811,0.79705,2470.1,2470.0,4.01275]
[1728306891414,0.3921,2470.1,2470.0,4.01275]
[1728306891614,1.8467,2470.3,2470.0,4.01275]
[1728306891615,0.40493,2470.2,2470.1,0.40494]
[1728306892613,0.78901,2470.3,2470.2,0.40492]
[1728306892917,0.4109,2470.5,2470.4,0.40488]
[1728306892918,0.40489,2470.5,2470.4,0.40488]
[1728306893118,0.79439,2470.5,2470.4,0.40488]
[1728306893513,0.79439,2470.5,2470.4,0.81728]
[1728306893815,0.79439,2470.5,2470.4,0.4124]
[1728306894215,0.79439,2470.5,2470.4,0.81729]
[1728306901318,0.40489,2470.4,2470.3,3.2078]
[1728306901518,0.8246,2470.4,2469.9,0.8865]
[1728306901721,0.8246,2470.4,2469.9,1.19746]
[1728306901722,0.40495,2470.0,2469.9,1.19746]
[1728306902122,0.79195,2470.0,2469.9,1.19746]
[1728306902625,0.387,2470.0,2469.9,1.19746]
[1728306902823,0.79195,2470.0,2469.9,1.19746]
[1728306903022,0.387,2470.0,2469.9,1.19746]
[1728306903434,0.79195,2470.0,2469.9,1.19746]
[1728306906026,0.79195,2470.0,2469.9,1.19747]
[1728306908024,0.40497,2469.9,2469.8,3.2078]
[1728306908230,0.40497,2469.9,2469.4,3.70684]
[1728306908231,0.40504,2469.5,2469.4,3.70684]
[1728306908431,0.40504,2469.5,2469.4,3.61284]
[1728306909434,0.80763,2469.6,2469.5,0.40504]
[1728306911424,1.84133,2470.0,2469.5,0.40504]
[1728306911425,0.8289,2470.0,2469.5,0.40504]
[1728306911626,3.8168,2470.2,2469.5,0.40504]
[1728306911627,0.4004,2469.9,2469.8,0.40499]
[1728306911831,1.01234,2470.2,2470.0,0.40495]
[1728306912139,0.4004,2470.1,2470.0,5.07275]
[1728306912745,1.20541,2470.3,2470.2,0.40492]
[1728306913048,1.20541,2470.3,2470.1,1.86493]
[1728306913049,0.40492,2470.2,2470.1,1.86493]
[1728306913841,1.2009,2470.3,2470.1,1.46]
[1728306914036,0.40492,2470.2,2470.1,1.86493]
[1728306915646,0.4004,2470.3,2470.1,4.6678]
[1728306915848,0.4004,2470.3,2470.2,0.40492]
[1728306916048,0.80531,2470.3,2470.2,0.79102]
[1728306919148,0.4004,2470.3,2470.2,0.79102]
[1728306919952,0.4049,2470.4,2470.3,0.40491]
[1728306920350,0.4049,2470.4,2470.3,0.80751]
[1728306922855,0.40491,2470.3,2470.2,0.3861]
[1728306923159,0.40491,2470.3,2470.1,3.2078]
[1728306923160,0.40492,2470.2,2470.1,3.2078]
[1728306923361,1.20922,2470.2,2470.1,3.2078]
[1728306923559,1.01239,2470.1,2469.7,0.094]
[1728306923749,2.47247,2469.9,2469.5,0.094]
[1728306924057,0.40502,2469.6,2469.5,0.40503]
[1728306926351,0.40504,2469.5,2469.4,4.03474]
[1728306926562,0.40504,2469.5,2469.4,3.2078]
[1728306926857,1.80472,2469.7,2469.3,0.3851]
[1728306926858,0.40505,2469.4,2469.3,0.3851]
[1728306927262,0.40505,2469.4,2469.3,0.79017]
[1728306927457,1.01257,2469.6,2469.3,0.79017]
[1728306927658,0.40505,2469.5,2469.4,0.40505]
[1728306928457,0.40505,2469.4,2469.3,0.3851]
[1728306928657,0.40505,2469.4,2469.3,0.79017]
[1728306929663,0.40505,2469.5,2469.4,0.40505]
[1728306930065,0.40503,2469.6,2469.5,0.40504]
[1728306930260,0.79801,2469.7,2469.6,0.40502]
[1728306930766,0.40502,2469.6,2469.5,0.80112]
[1728306940765,3.553,2469.7,2469.4,3.2078]
[1728306941069,0.40504,2469.5,2469.4,3.2078]
[1728306942267,7.2096,2469.5,2469.0,1.23901]
[1728306942465,0.79,2469.6,2469.0,1.23901]
[1728306942466,0.4051,2469.1,2469.0,1.23901]
[1728306942674,0.4051,2469.1,2469.0,0.81641]
[1728306943574,0.40512,2469.0,2468.9,0.4176]
[1728306943768,0.40512,2469.0,2468.8,3.5965]
[1728306943769,1.01276,2469.1,2468.8,3.2078]
[1728306944070,1.01276,2469.1,2468.5,0.4176]
[1728306944071,1.0129,2468.8,2468.5,0.4176]
[1728306944274,0.40518,2468.6,2468.5,0.4176]
[1728306944571,0.79788,2468.7,2468.5,0.82279]
[1728306945270,0.79788,2468.7,2468.6,0.40518]
[1728306945271,0.3927,2468.7,2468.6,0.40518]
[1728306946367,1.01286,2468.9,2468.5,0.4176]
[1728306946575,0.40518,2468.7,2468.5,0.82279]
[1728306946873,0.40518,2468.7,2468.5,0.4176]
[1728306947072,0.40518,2468.7,2468.6,0.40518]
[1728306947270,0.40518,2468.7,2468.5,0.82279]
[1728306947473,0.40518,2468.7,2468.5,0.4176]
[1728306947670,1.40556,2468.9,2468.4,3.2078]
[1728306947871,0.40519,2468.6,2468.5,0.40519]
[1728306948274,0.40519,2468.6,2468.5,0.4052]
[1728306948579,0.40518,2468.7,2468.5,0.4052]
[1728306948876,0.40518,2468.7,2468.6,0.40518]
[1728306949877,0.3927,2468.9,2468.5,0.3932]
[1728306950081,0.40516,2468.8,2468.6,0.40518]
[1728306950379,0.3927,2468.9,2468.6,0.40518]
[1728306950563,0.40517,2468.8,2468.6,0.40518]
[1728306951270,0.40517,2468.8,2468.7,0.40517]
[1728306951573,1.80564,2469.0,2468.7,0.40517]
[1728306951574,0.40512,2469.0,2468.9,0.40513]
[1728306952475,0.40513,2468.9,2468.8,0.80875]
[1728306952673,0.40518,2468.7,2468.6,0.40518]
[1728306952871,0.78907,2468.8,2468.7,0.40517]
[1728306953272,0.40517,2468.7,2468.6,0.40517]
[1728306955675,0.40518,2468.6,2468.5,0.79839]
[1728306956173,0.40518,2468.7,2468.6,0.40518]
[1728306958680,0.78906,2468.8,2468.7,0.40517]
[1728306960581,0.3849,2469.2,2468.7,6.3678]
[1728306960780,0.40513,2469.0,2468.9,0.40512]
[1728306961486,1.81402,2469.2,2468.8,0.4106]
[1728306961683,0.40512,2469.1,2469.0,0.40511]
[1728306962775,0.40512,2469.0,2468.9,0.81152]
[1728306964987,0.40511,2469.1,2469.0,0.4051]
[1728306965186,3.16,2469.4,2469.2,0.40508]
[1728306965187,1.01265,2469.4,2469.2,0.40508]
[1728306965487,0.40507,2469.4,2469.3,0.40507]
[1728306966291,0.40507,2469.4,2469.2,0.4097]
[1728306966292,0.40507,2469.3,2469.2,0.4097]
[1728306966693,0.40507,2469.3,2469.2,0.81479]
[1728306972392,1.86507,2469.3,2469.2,0.81479]
[1728306975491,1.46,2469.3,2469.2,0.81479]
[1728306975697,1.86507,2469.3,2469.2,0.81479]
[1728306975897,1.46,2469.3,2469.2,0.81479]
[1728306976203,0.40506,2469.4,2469.3,0.40507]
[1728306976496,0.40506,2469.4,2469.3,0.82677]
[1728306976895,0.40506,2469.4,2469.3,0.4217]
[1728306977395,0.40506,2469.4,2469.3,0.82677]
[1728306979295,0.40506,2469.4,2469.3,0.40507]
[1728306980099,1.01268,2469.3,2468.8,3.3018]
[1728306980398,1.46,2468.9,2468.8,0.40514]
[1728306980597,1.86512,2469.0,2468.9,0.40513]
[1728306980793,0.40512,2469.0,2468.9,0.40513]
[1728306981296,0.40512,2469.0,2468.9,0.81763]
[1728306982502,1.86512,2469.0,2468.9,0.4125]
[1728306983791,1.86512,2469.0,2468.9,0.81763]
[1728306983995,1.86512,2469.0,2468.9,0.4125]
[1728306984597,1.01267,2469.4,2468.9,0.4125]
[1728306984899,0.40509,2469.3,2469.1,3.2078]
[1728306985200,0.40509,2469.2,2469.1,4.01689]
[1728306988304,0.40509,2469.2,2469.1,3.6118]
[1728306988502,1.86509,2469.2,2469.1,4.0169]
[1728306993006,1.86509,2469.2,2469.1,3.6118]
[1728306993210,1.46,2469.2,2468.7,0.40516]
[1728306993413,0.40517,2468.7,2468.6,0.799]
[1728306993610,1.86517,2468.7,2468.6,0.799]
[1728306993906,2.28847,2468.7,2468.6,0.799]
[1728306994311,2.28847,2468.7,2468.6,0.4028]
[1728306994512,1.8833,2468.7,2468.5,3.2078]
[1728306994712,0.40518,2468.6,2468.5,3.2078]
[1728306994909,0.4052,2468.6,2468.4,0.40521]
[1728306995107,2.89623,2468.7,2468.4,0.40521]
[1728306995108,0.4052,2468.5,2468.4,0.40521]
[1728306995308,1.8652,2468.5,2468.4,0.40521]
[1728306996019,1.86521,2468.5,2468.4,0.40522]
[1728306996815,1.46,2468.5,2468.4,0.40522]
[1728306998907,1.46,2468.6,2468.4,0.40522]
[1728306999210,0.82847,2468.7,2468.6,0.40518]
[1728306999607,0.82847,2468.7,2468.6,0.80838]
[1728306999804,1.46,2469.0,2468.6,0.4032]
[1728307000010,2.26973,2469.0,2468.7,0.7831]
[1728307000209,1.8646,2469.0,2468.7,0.7831]
[1728307000416,2.26973,2469.0,2468.7,0.7831]
[1728307000612,2.26973,2469.0,2468.8,0.40515]
[1728307000811,1.8646,2469.0,2468.8,0.40515]
[1728307001015,0.40513,2468.9,2468.8,0.40515]
[1728307004116,0.40515,2468.8,2468.7,1.18825]
[1728307005219,1.86515,2468.8,2468.7,0.7831]
[1728307005423,1.46,2468.8,2468.5,3.2078]
[1728307005620,2.2857,2468.7,2468.3,1.33223]
[1728307005923,2.2857,2468.7,2468.3,0.833]
[1728307005924,1.86522,2468.4,2468.3,0.833]
[1728307006223,1.86522,2468.4,2468.3,0.4186]
[1728307006819,1.86522,2468.4,2468.3,0.82383]
[1728307008417,0.40522,2468.4,2468.3,0.82383]
[1728307009018,0.4205,2468.6,2468.3,0.4186]
[1728307009218,1.01286,2468.9,2468.5,3.2078]
[1728307009419,0.40518,2468.7,2468.6,0.82858]
[1728307012113,0.40518,2468.7,2468.6,0.4234]
[1728307012722,0.40518,2468.7,2468.6,0.82858]
[1728307016916,0.40518,2468.7,2468.5,3.2078]
[1728307017225,0.40518,2468.6,2468.5,0.4052]
[1728307017423,0.4052,2468.5,2468.4,0.7939]
[1728307017618,0.8222,2468.5,2468.4,0.7939]
[1728307023132,3.577,2468.5,2468.3,0.4186]
[1728307023323,0.40522,2468.4,2468.3,0.4186]
[1728307023523,3.16,2468.4,2468.1,0.82436]
[1728307023724,0.40525,2468.2,2468.1,0.4191]
[1728307024025,3.56525,2468.2,2468.1,0.4191]
[1728307024229,4.17314,2468.2,2467.9,3.2078]
[1728307024427,0.40528,2468.0,2467.9,3.2078]
[1728307024832,0.40528,2468.0,2467.9,3.6131]
[1728307025339,0.40528,2468.0,2467.9,3.2078]
[1728307025531,3.56528,2468.0,2467.9,3.2078]
[1728307027529,3.16,2468.0,2467.8,0.40531]
[1728307027838,0.4053,2467.9,2467.8,3.61311]
[1728307029337,0.3983,2468.1,2468.0,0.40528]
[1728307029535,0.40523,2468.4,2468.3,0.40523]
[1728307029733,0.80993,2468.4,2468.3,0.40523]
[1728307030034,0.4047,2468.4,2468.3,0.40523]
[1728307030241,0.4047,2468.4,2468.3,0.80843]
[1728307030839,0.40522,2468.4,2468.3,0.80843]
[1728307031036,3.16,2468.7,2468.3,0.4032]
[1728307031333,3.16,2468.7,2468.5,3.2078]
[1728307031334,0.40518,2468.7,2468.5,3.2078]
[1728307031536,4.57755,2468.9,2468.5,3.2078]
[1728307031537,0.40518,2468.6,2468.5,3.61299]
[1728307032232,0.40518,2468.7,2468.6,0.40518]
[1728307032631,4.57755,2468.9,2468.5,3.2078]
[1728307032829,0.40518,2468.6,2468.5,4.03668]
[1728307033241,0.40518,2468.7,2468.6,0.40517]
[1728307034034,0.40518,2468.6,2468.5,4.03669]
[1728307034235,0.40518,2468.6,2468.5,3.2078]
[1728307034439,0.40518,2468.6,2468.1,0.094]
[1728307034440,5.06421,2468.6,2468.2,3.2078]
[1728307034746,0.40523,2468.3,2468.2,3.2078]
[1728307036637,0.40523,2468.3,2468.2,3.61305]
[1728307037743,0.40523,2468.3,2468.2,3.2078]
[1728307039044,3.16,2468.4,2468.0,0.40528]
[1728307039239,0.40527,2468.1,2468.0,0.40528]
[1728307039745,0.79087,2468.1,2468.0,0.40528]
[1728307040139,0.3856,2468.1,2468.0,0.40528]
[1728307040747,0.40522,2468.4,2468.3,0.40522]
[1728307041442,0.40522,2468.4,2468.3,0.80122]
[1728307042750,0.7908,2468.6,2468.5,0.4052]
[1728307043145,4.842,2468.6,2468.5,0.4052]
[1728307044440,0.40522,2468.4,2468.3,1.19691]
[1728307044836,3.56524,2468.4,2468.3,0.40523]
[1728307045038,3.56521,2468.5,2468.2,4.0131]
[1728307045347,3.56521,2468.5,2468.4,0.40522]
[1728307046644,0.40522,2468.4,2468.3,0.40522]
[1728307047749,3.16,2468.5,2468.2,4.0131]
[1728307048048,0.40522,2468.4,2468.3,0.40522]
[1728307049839,3.16,2468.5,2468.4,0.40522]
[1728307049840,3.56521,2468.5,2468.4,0.40522]
[1728307050149,0.3856,2468.6,2468.2,5.02623]
[1728307050450,0.40521,2468.5,2468.4,0.40521]
[1728307050856,0.40522,2468.4,2468.3,0.40522]
[1728307051353,3.5443,2468.5,2468.2,0.8053]
[1728307051656,0.40523,2468.3,2468.2,1.21054]
[1728307054144,1.39861,2468.6,2468.5,0.4052]
[1728307054145,0.40519,2468.6,2468.5,0.4052]
[1728307054450,0.40518,2468.7,2468.6,0.40518]
[1728307055149,0.40518,2468.7,2468.6,1.2335]
[1728307055653,0.40518,2468.7,2468.6,1.23578]
[1728307057358,0.40518,2468.7,2468.6,0.8306]
[1728307057654,0.40518,2468.7,2468.6,1.23578]
[1728307058668,3.96166,2468.8,2468.7,0.40517]
[1728307058850,3.56516,2468.8,2468.7,0.40517]
[1728307059051,0.40516,2468.8,2468.7,0.40517]
[1728307059259,0.395,2468.9,2468.6,0.8306]
[1728307059463,0.40513,2469.0,2468.9,0.40512]
[1728307059755,0.395,2469.3,2468.8,3.2078]
[1728307059958,0.40513,2469.0,2468.9,0.40512]
[1728307060158,0.40513,2469.0,2468.9,0.81512]
[1728307060848,4.17273,2469.2,2468.9,0.41]
[1728307061044,3.16,2469.2,2468.9,0.41]
[1728307061245,0.40503,2469.6,2469.1,4.22054]
[1728307061450,1.03,2470.0,2469.4,6.3678]
[1728307061654,1.363,2470.4,2469.7,3.2078]
[1728307061852,3.5521,2470.3,2469.8,0.3911]
[1728307062048,0.40497,2469.9,2469.8,0.79609]
[1728307062248,0.40497,2469.9,2469.8,0.3911]
[1728307062457,4.56439,2470.3,2469.9,0.40497]
[1728307062656,0.40495,2470.0,2469.8,0.3911]
[1728307062954,0.40497,2469.9,2469.8,0.3911]
[1728307063156,0.40497,2469.9,2469.7,3.2078]
[1728307063157,0.40499,2469.8,2469.7,3.2078]
[1728307063366,3.5819,2469.8,2469.5,0.8011]
[1728307063554,0.40502,2469.6,2469.5,0.8011]
[1728307063859,0.8269,2469.8,2469.6,0.40501]
[1728307064054,0.8269,2469.8,2469.6,3.61281]
[1728307064250,0.8269,2469.8,2469.6,3.2078]
[1728307064548,0.8269,2469.8,2469.6,3.61281]
[1728307064759,0.8269,2469.8,2469.7,0.405]
[1728307065157,0.8269,2469.8,2469.6,3.2078]
[1728307065359,0.8269,2469.8,2469.6,3.61281]
[1728307065554,0.405,2469.7,2469.6,3.61281]
[1728307066166,0.8269,2469.8,2469.6,3.2078]
[1728307066359,0.8269,2469.8,2469.7,0.405]
[1728307067361,3.16,2469.9,2469.6,3.2078]
[1728307067563,3.16,2470.3,2469.6,6.3678]
[1728307067767,3.98101,2470.3,2470.1,0.40493]
[1728307067965,3.16,2470.5,2470.2,0.395]
[1728307068277,0.8133,2470.6,2470.2,3.6028]
[1728307068561,0.4161,2470.6,2470.3,0.4049]
[1728307068952,0.40489,2470.4,2470.3,0.4049]
[1728307069158,0.40489,2470.4,2470.2,4.00771]
[1728307072069,0.40491,2470.3,2470.2,3.6028]
[1728307072268,0.40494,2470.1,2470.0,0.3887]
[1728307072471,0.40497,2469.9,2469.8,3.6303]
[1728307073861,0.40497,2469.9,2469.8,4.03529]
[1728307075177,0.40497,2469.9,2469.8,3.6303]
[1728307077275,0.40497,2469.9,2469.8,4.03529]
[1728307078468,4.17235,2470.1,2469.8,3.6303]
[1728307078973,0.40497,2469.9,2469.8,4.03528]
[1728307079567,0.40496,2470.0,2469.9,0.40497]
[1728307080170,4.17235,2470.1,2469.8,3.6303]
[1728307080171,1.01235,2470.1,2469.8,3.6303]
[1728307080372,0.40497,2469.9,2469.8,4.03528]
[1728307081675,1.01235,2470.1,2469.9,0.40497]
[1728307081676,0.40496,2470.0,2469.9,0.40497]
[1728307082071,0.40496,2470.0,2469.8,3.6303]
[1728307082265,1.01235,2470.1,2469.8,3.6303]
[1728307082266,0.40497,2469.9,2469.8,4.03528]
[1728307084486,0.40497,2469.9,2469.8,3.6303]
[1728307084774,0.40497,2469.9,2469.8,3.2078]
[1728307085174,0.81247,2469.9,2469.8,3.2078]
[1728307085581,0.40497,2469.9,2469.8,3.2078]
[1728307085771,0.40497,2469.9,2469.8,3.61278]
[1728307086672,0.40497,2469.9,2469.8,4.0238]
[1728307090183,0.40497,2469.9,2469.8,3.6216]
[1728307090374,0.40497,2469.9,2469.8,3.2078]
[1728307091185,3.16,2470.0,2469.7,0.405]
[1728307091374,0.40499,2469.8,2469.7,3.6128]
[1728307094774,0.40498,2469.9,2469.8,0.40498]
[1728307095179,3.9581,2470.2,2469.7,3.2078]
[1728307095374,0.40495,2470.1,2470.0,0.40495]
[1728307096382,0.79552,2470.2,2470.1,0.40494]
[1728307097481,0.3906,2470.2,2470.1,0.40494]
[1728307097681,1.01221,2470.5,2470.2,0.40491]
[1728307097682,0.40491,2470.3,2470.2,0.40491]
[1728307099871,0.82261,2470.4,2470.3,0.40491]
[1728307102889,0.4177,2470.4,2470.3,0.40491]
[1728307103092,0.82259,2470.4,2470.3,0.40491]
[1728307103585,0.4177,2470.4,2470.3,0.40491]
[1728307103783,0.4177,2470.4,2470.3,3.61271]
[1728307104178,0.4177,2470.4,2470.3,4.80061]
[1728307104785,0.82259,2470.4,2470.3,4.80061]
[1728307104984,0.4177,2470.4,2470.3,4.80061]
[1728307105691,0.82259,2470.4,2470.3,4.80061]
[1728307105886,0.4177,2470.4,2470.3,4.80061]
[1728307106287,0.40488,2470.5,2470.4,0.40489]
[1728307106493,0.3985,2470.8,2470.7,0.40484]
[1728307106494,0.80333,2470.8,2470.7,0.40484]
[1728307106693,0.3985,2470.8,2470.7,0.40484]
[1728307106892,4.17188,2471.3,2470.7,0.40484]
[1728307107193,0.609,2471.9,2471.2,3.2078]
[1728307107491,0.4047,2471.6,2471.5,3.6125]
[1728307107686,0.4047,2471.6,2471.4,0.40472]
[1728307107886,1.01166,2471.8,2471.3,0.82874]
[1728307107887,1.41021,2471.7,2471.3,0.82874]
[1728307108093,0.40474,2471.3,2471.2,3.2078]
[1728307108291,3.56474,2471.3,2471.2,3.2078]
[1728307108487,7.61114,2471.3,2471.2,3.2078]
[1728307109396,7.61114,2471.3,2470.8,0.40482]
[1728307109397,0.40481,2470.9,2470.8,0.40482]
[1728307109784,3.16,2471.0,2470.6,4.0423]
[1728307109785,3.5433,2471.0,2470.6,4.0423]
[1728307109989,0.4038,2470.8,2470.7,0.40484]
[1728307110899,0.3833,2471.0,2470.9,0.40481]
[1728307111205,1.01185,2471.4,2470.9,4.21982]
[1728307111206,0.40473,2471.4,2470.9,4.21982]
[1728307111389,0.4038,2471.3,2471.2,3.61256]
[1728307115295,0.3901,2471.8,2471.7,0.40468]
[1728307115500,0.40466,2471.8,2471.7,0.40468]
[1728307116093,0.40466,2471.8,2471.7,0.78838]
[1728307116292,0.40466,2471.8,2471.7,0.3837]
[1728307116491,0.3827,2471.9,2471.6,3.2078]
[1728307116694,0.3827,2471.9,2471.6,3.61249]
[1728307116695,0.40468,2471.7,2471.6,3.61249]
[1728307117201,1.39434,2471.9,2471.7,0.40466]
[1728307117202,0.40467,2471.8,2471.7,0.40466]
[1728307117591,0.40468,2471.7,2471.6,3.61248]
[1728307117788,0.40468,2471.8,2471.7,0.40467]
[1728307118890,0.78736,2471.9,2471.8,0.40466]
[1728307119088,0.3827,2471.9,2471.8,0.40466]
[1728307119293,0.40464,2472.0,2471.9,0.40463]
[1728307119490,4.5928,2472.2,2471.6,3.3018]
[1728307119688,0.40465,2471.9,2471.8,0.40465]
[1728307120993,1.01154,2472.1,2471.6,3.2078]
[1728307121203,0.82598,2471.8,2471.7,0.40467]
[1728307121700,0.40464,2472.0,2471.9,0.40463]
[1728307122000,0.4012,2472.1,2471.7,1.01169]
[1728307122201,0.80582,2472.1,2472.0,0.40463]
[1728307124000,0.80582,2472.1,2472.0,1.20913]
[1728307126893,0.40462,2472.1,2472.0,1.20913]
[1728307127098,0.40462,2472.1,2472.0,1.60113]
[1728307127307,0.40462,2472.1,2472.0,0.8045]
[1728307127604,0.40462,2472.1,2472.0,0.79113]
[1728307128001,0.79339,2472.3,2472.2,0.40459]
[1728307128709,3.61232,2472.7,2472.6,0.40453]
[1728307129012,1.01127,2472.8,2472.7,0.40451]
[1728307129013,0.80681,2472.8,2472.7,0.40451]
[1728307129309,0.4023,2472.8,2472.7,0.40451]
[1728307129711,0.8068,2472.8,2472.7,0.40451]
[1728307130798,0.3961,2473.1,2472.7,0.40451]
[1728307130998,3.2078,2473.3,2473.0,0.40446]
[1728307131204,3.2078,2473.3,2473.2,0.40443]
[1728307131205,3.61222,2473.3,2473.2,0.40443]
[1728307131600,0.40443,2473.2,2473.1,0.82104]
[1728307131909,0.40443,2473.2,2473.1,0.4166]
[1728307132105,0.40448,2472.9,2472.8,3.2078]
[1728307133406,3.56448,2472.9,2472.8,3.2078]
[1728307134008,0.40453,2472.6,2472.5,3.61235]
[1728307136709,1.01125,2472.8,2472.5,3.2078]
[1728307136909,1.42905,2472.8,2472.5,3.2078]
[1728307137114,0.40453,2472.6,2472.5,3.61233]
[1728307137703,0.8223,2472.8,2472.7,0.40451]
[1728307137903,0.4178,2472.8,2472.7,0.40451]
[1728307138104,0.40449,2472.9,2472.8,0.40448]
[1728307138814,0.40449,2472.9,2472.8,0.79798]
[1728307139211,0.40449,2472.9,2472.8,0.3935]
[1728307139515,0.4045,2472.9,2472.8,0.40449]
[1728307140019,5.01255,2473.1,2472.6,0.4111]
[1728307140020,0.40449,2473.0,2472.9,0.40447]
[1728307140317,0.40449,2473.0,2472.6,1.42242]
[1728307140318,0.8414,2473.1,2472.6,1.42242]
[1728307140516,0.4178,2473.1,2473.0,0.40446]
[1728307141016,4.461,2473.1,2473.0,0.40446]
[1728307141412,0.4178,2473.1,2473.0,0.81556]
[1728307141617,0.40442,2473.3,2473.2,0.40443]
[1728307141911,0.4194,2473.4,2473.0,1.42226]
[1728307142110,0.40437,2473.6,2473.5,0.40436]
[1728307142513,0.81296,2473.7,2473.6,0.40437]
[1728307142713,0.81296,2473.7,2473.2,4.17108]
[1728307142714,0.4086,2473.7,2473.2,4.17108]
[1728307142905,0.40438,2473.6,2473.5,0.40438]
[1728307143111,0.40438,2473.6,2473.2,4.17108]
[1728307143112,1.01092,2473.6,2473.2,3.16]
[1728307143418,1.01092,2473.6,2473.3,0.4044]
[1728307143419,0.4044,2473.4,2473.3,0.4044]
[1728307143714,0.40442,2473.3,2473.2,0.40442]
[1728307144113,0.40439,2473.5,2473.4,0.40439]
[1728307144315,0.40438,2473.6,2473.5,0.40437]
[1728307145206,0.40441,2473.4,2473.3,0.40441]
[1728307145410,0.4044,2473.5,2473.4,0.40439]
[1728307145608,0.4086,2473.7,2473.2,3.16]
[1728307145809,0.40439,2473.5,2473.4,0.40439]
[1728307147219,0.40441,2473.4,2473.3,0.4044]
[1728307147625,0.40439,2473.5,2473.4,0.40439]
[1728307147825,0.40438,2473.5,2473.4,0.4044]
[1728307148029,0.40441,2473.4,2473.3,0.40441]
[1728307148417,0.40439,2473.5,2473.4,0.40439]
[1728307148622,1.4195,2473.7,2473.2,3.16]
[1728307148820,0.40438,2473.6,2473.5,0.40437]
[1728307150227,0.40441,2473.4,2473.3,0.40441]
[1728307150825,3.16,2473.6,2473.1,3.2078]
[1728307151129,0.81553,2473.3,2473.2,0.40442]
[1728307151328,0.81552,2473.3,2473.2,0.40443]
[1728307151525,0.40444,2473.2,2473.1,0.40444]
[1728307151925,0.40444,2473.2,2473.1,0.40443]
[1728307152321,0.40444,2473.2,2473.0,0.4111]
[1728307152322,0.81552,2473.3,2473.2,0.40443]
[1728307152621,1.42558,2473.5,2473.4,0.40439]
[1728307152622,0.40439,2473.5,2473.4,0.40439]
[1728307153226,0.4222,2473.6,2473.2,0.40443]
[1728307153227,0.4222,2473.6,2473.5,0.40438]
[1728307153422,0.82657,2473.6,2473.5,0.40438]
[1728307153827,0.4222,2473.6,2473.5,0.40438]
[1728307154028,0.40433,2474.0,2473.9,0.4043]